bitfinex/quotes_BTCUSD_20210402
["timestamp","ask_amount","ask_price","bid_price","bid_amount"]
[1617323001155,0.01415768,58704.0,58703.0,2.154229]
[1617323001355,0.01415768,58704.0,58703.0,1.79227725]
[1617323002356,0.01415768,58704.0,58703.0,0.639256]
[1617323002555,0.01415768,58704.0,58703.0,0.91553032]
[1617323002758,0.01415768,58704.0,58703.0,0.92126511]
[1617323003759,0.01415768,58704.0,58703.0,0.59499079]
[1617323003962,0.01415768,58704.0,58703.0,0.20573479]
[1617323004155,0.01415768,58704.0,58703.0,0.59499079]
[1617323004561,5.768e-05,58704.0,58703.0,0.85928322]
[1617323004788,5.768e-05,58704.0,58703.0,3.74461496]
[1617323004985,5.768e-05,58704.0,58703.0,3.78461496]
[1617323005184,5.768e-05,58704.0,58703.0,3.38890322]
[1617323005585,5.768e-05,58704.0,58703.0,3.66894169]
[1617323005987,5.768e-05,58704.0,58703.0,3.84590322]
[1617323006982,5.768e-05,58704.0,58703.0,4.84590322]
[1617323007404,0.01360992,58712.0,58705.0,2.175485]
[1617323007609,0.01360992,58712.0,58711.0,2.08698061]
[1617323007806,0.01333604,58717.0,58712.0,2.18429243]
[1617323008007,0.01333604,58717.0,58716.0,2.169256]
[1617323008207,0.01333604,58717.0,58716.0,1.94]
[1617323008408,0.01333604,58717.0,58716.0,3.051675]
[1617323008605,0.01333604,58717.0,58716.0,3.101675]
[1617323008806,0.01333604,58717.0,58716.0,3.36596743]
[1617323009010,0.01333604,58717.0,58716.0,4.28096743]
[1617323009208,0.01333604,58717.0,58716.0,4.30656957]
[1617323009411,0.01333604,58717.0,58716.0,4.35656957]
[1617323009611,0.01224052,58734.0,58717.0,2.18429243]
[1617323009811,0.01224052,58734.0,58720.0,2.96332424]
[1617323010039,0.01224052,58734.0,58720.0,4.22761667]
[1617323010234,0.01224052,58734.0,58720.0,3.96332424]
[1617323010635,0.01224052,58734.0,58720.0,2.04332424]
[1617323010836,0.01224052,58734.0,58720.0,1.92960176]
[1617323011033,0.01224052,58734.0,58720.0,1.15336426]
[1617323011231,0.01224052,58734.0,58720.0,1.27403598]
[1617323012241,0.01224052,58734.0,58720.0,1.33561667]
[1617323012657,0.01224052,58734.0,58721.0,1.91]
[1617323012864,0.01224052,58734.0,58724.0,2.456225]
[1617323013057,0.01224052,58734.0,58724.0,2.756225]
[1617323013260,0.01224052,58734.0,58724.0,4.001793]
[1617323017523,0.01224052,58734.0,58724.0,2.091793]
[1617323017723,0.01224052,58734.0,58724.0,0.936793]
[1617323017922,0.01224052,58734.0,58724.0,1.21183302]
[1617323018327,0.01224052,58734.0,58724.0,1.00483302]
[1617323018525,0.01224052,58734.0,58724.0,0.729793]
[1617323018726,0.01224052,58734.0,58724.0,0.979793]
[1617323019527,0.41713,58728.0,58724.0,0.979793]
[1617323020331,0.12705,58726.0,58724.0,0.979793]
[1617323020534,0.52168,58726.0,58724.0,1.029793]
[1617323020735,0.25168,58726.0,58724.0,1.029793]
[1617323020933,0.25168,58726.0,58724.0,0.689225]
[1617323022334,0.25168,58726.0,58724.0,0.639225]
[1617323022533,0.25168,58726.0,58724.0,0.389225]
[1617323023147,0.25168,58726.0,58723.0,0.00573278]
[1617323023351,0.5395372,58725.0,58723.0,0.00573278]
[1617323023751,0.389256,58724.0,58723.0,0.00573278]
[1617323023950,0.5395372,58725.0,58723.0,0.00573278]
[1617323024755,0.5395372,58725.0,58724.0,0.1]
[1617323025558,0.5395372,58725.0,58724.0,0.15]
[1617323025785,0.5395372,58725.0,58724.0,2.049225]
[1617323026179,0.5395372,58725.0,58724.0,2.514225]
[1617323026383,0.5395372,58725.0,58724.0,3.104803]
[1617323026586,0.18041888,58746.0,58725.0,2.47429243]
[1617323026788,0.01141888,58746.0,58730.0,0.12715211]
[1617323026985,0.01141888,58746.0,58733.0,2.299154]
[1617323027183,0.01141888,58746.0,58733.0,2.61344643]
[1617323027383,0.01196664,58738.0,58733.0,3.39944643]
[1617323027583,0.01196664,58738.0,58733.0,4.55643428]
[1617323027782,0.01196664,58738.0,58733.0,4.95482743]
[1617323027981,0.01196664,58738.0,58734.0,2.17429243]
[1617323028184,0.01196664,58738.0,58737.0,2.299123]
[1617323028510,0.01196664,58738.0,58737.0,3.399123]
[1617323028701,0.01196664,58738.0,58737.0,3.699123]
[1617323029102,0.01196664,58738.0,58737.0,3.96341543]
[1617323029312,0.01196664,58738.0,58737.0,3.699123]
[1617323029506,0.01196664,58738.0,58737.0,0.789123]
[1617323029705,0.01196664,58738.0,58737.0,1.099123]
[1617323030104,0.01196664,58738.0,58737.0,1.37690654]
[1617323030700,0.01196664,58738.0,58737.0,2.26690654]
[1617323030903,0.01196664,58738.0,58737.0,2.72690654]
[1617323031153,0.01196664,58738.0,58737.0,2.749123]
[1617323031550,0.01196664,58738.0,58737.0,2.906123]
[1617323031754,0.01196664,58738.0,58737.0,3.206123]
[1617323031954,0.01196664,58738.0,58737.0,3.049123]
[1617323032152,0.01196664,58738.0,58737.0,2.059123]
[1617323032352,0.01196664,58738.0,58737.0,1.759123]
[1617323032953,0.01196664,58738.0,58737.0,1.559123]
[1617323033555,0.01196664,58738.0,58737.0,1.459123]
[1617323033763,0.01196664,58738.0,58737.0,1.77595272]
[1617323033958,0.01196664,58738.0,58737.0,1.559123]
[1617323034157,0.01196664,58738.0,58737.0,1.617123]
[1617323034357,0.01196664,58738.0,58737.0,1.559123]
[1617323034563,0.01196664,58738.0,58737.0,0.849123]
[1617323034766,0.01196664,58738.0,58737.0,0.389123]
[1617323035159,0.01196664,58738.0,58736.0,0.255354]
[1617323035563,0.01196664,58738.0,58734.0,0.340472]
[1617323035769,0.01196664,58738.0,58730.0,0.255443]
[1617323036161,0.01196664,58738.0,58731.0,0.389163]
[1617323037781,0.01196664,58738.0,58733.0,0.25543]
[1617323038381,0.01196664,58738.0,58733.0,0.35543]
[1617323038580,0.01196664,58738.0,58734.0,0.389144]
[1617323039211,0.01196664,58738.0,58730.0,0.729737]
[1617323039612,0.01196664,58738.0,58734.0,0.00573168]
[1617323040419,0.389256,58736.0,58734.0,0.00573168]
[1617323040622,1.22496357,58735.0,58734.0,0.00573168]
[1617323040816,0.489256,58735.0,58734.0,0.00573168]
[1617323041014,1.22496357,58735.0,58734.0,0.00573168]
[1617323041215,1.48496357,58735.0,58734.0,0.00573168]
[1617323041415,1.38594665,58735.0,58734.0,0.00573168]
[1617323041643,1.38496357,58735.0,58734.0,0.00573168]
[1617323041841,0.65023901,58735.0,58734.0,0.00573168]
[1617323042639,1.38594658,58735.0,58734.0,0.00573168]
[1617323042839,1.38496357,58735.0,58734.0,0.00073168]
[1617323043038,1.48496357,58735.0,58734.0,0.00073168]
[1617323043520,0.749256,58735.0,58734.0,0.00073168]
[1617323043715,1.48496357,58735.0,58734.0,0.00073168]
[1617323044180,0.749256,58735.0,58734.0,0.00073168]
[1617323044318,0.649256,58735.0,58734.0,0.00073168]
[1617323044516,0.389256,58735.0,58734.0,0.00073168]
[1617323045316,0.389256,58735.0,58734.0,0.00573174]
[1617323046114,0.489256,58735.0,58734.0,0.00573174]
[1617323046514,1.35496357,58735.0,58734.0,0.00573174]
[1617323046918,1.45496357,58735.0,58734.0,0.00573174]
[1617323047314,1.35496357,58735.0,58734.0,0.00573174]
[1617323047516,1.45594745,58735.0,58734.0,0.00573174]
[1617323047712,0.62023988,58735.0,58734.0,0.00573174]
[1617323047914,1.35594745,58735.0,58734.0,0.00573174]
[1617323048116,0.62023988,58735.0,58734.0,0.00573174]
[1617323049120,0.619256,58735.0,58734.0,0.00573174]
[1617323049923,0.89703954,58735.0,58734.0,0.00573174]
[1617323050124,1.73274711,58735.0,58734.0,0.00573174]
[1617323050723,1.45496357,58735.0,58734.0,0.00573174]
[1617323050924,0.719256,58735.0,58734.0,0.00573174]
[1617323051123,0.72023871,58735.0,58734.0,0.00573174]
[1617323051324,1.73372982,58735.0,58734.0,0.00573174]
[1617323051531,1.73372982,58735.0,58734.0,1.74e-06]
[1617323051532,1.73274711,58735.0,58734.0,1.74e-06]
[1617323051739,1.89874711,58735.0,58734.0,1.74e-06]
[1617323051930,2.1044038,58735.0,58734.0,1.74e-06]
[1617323052544,2.20752014,58735.0,58734.0,1.74e-06]
[1617323052742,1.9297366,58735.0,58734.0,1.74e-06]
[1617323053342,1.72407991,58735.0,58734.0,1.74e-06]
[1617323054143,1.45807991,58735.0,58734.0,1.74e-06]
[1617323054343,1.55807991,58735.0,58734.0,1.74e-06]
[1617323054549,0.619256,58735.0,58734.0,1.74e-06]
[1617323055174,0.62023999,58735.0,58734.0,1.74e-06]
[1617323055371,0.78923999,58735.0,58734.0,1.74e-06]
[1617323055570,0.788256,58735.0,58734.0,1.74e-06]
[1617323056170,0.78924045,58735.0,58734.0,1.74e-06]
[1617323056570,0.619256,58735.0,58734.0,1.74e-06]
[1617323057167,0.622256,58735.0,58734.0,1.74e-06]
[1617323057598,1.29525254,58735.0,58734.0,1.74e-06]
[1617323057999,1.29623743,58735.0,58734.0,1.74e-06]
[1617323058196,1.29328277,58735.0,58734.0,1.74e-06]
[1617323058660,1.39328277,58735.0,58734.0,1.74e-06]
[1617323058866,1.29328277,58735.0,58734.0,1.74e-06]
[1617323059462,2.02899034,58735.0,58734.0,1.74e-06]
[1617323059661,2.12899034,58735.0,58734.0,1.74e-06]
[1617323060061,1.29328277,58735.0,58734.0,1.74e-06]
[1617323061868,2.29399034,58735.0,58734.0,1.74e-06]
[1617323063070,2.76475034,58735.0,58734.0,1.74e-06]
[1617323064073,2.97216438,58735.0,58734.0,1.74e-06]
[1617323064473,3.12728072,58735.0,58697.0,0.00303724]
[1617323064679,0.73570757,58728.0,58693.0,0.00303724]
[1617323064873,0.389256,58707.0,58690.0,0.00200289]
[1617323065075,0.0044,58706.0,58691.0,0.00303724]
[1617323065473,0.004,58700.0,58689.0,0.00303724]
[1617323065673,0.004,58700.0,58686.0,0.00303724]
[1617323065874,0.004,58700.0,58687.0,0.389256]
[1617323066269,0.004,58700.0,58683.0,0.34083237]
[1617323066471,0.004,58700.0,58685.0,0.00303724]
[1617323066670,0.004,58700.0,58684.0,0.00303724]
[1617323066867,0.004,58700.0,58686.0,0.39229324]
[1617323067067,0.004,58700.0,58686.0,0.389256]
[1617323067269,0.004,58700.0,58688.0,0.27778354]
[1617323067468,0.004,58700.0,58688.0,0.42278354]
[1617323067666,0.004,58700.0,58689.0,0.26429243]
[1617323067896,0.004,58700.0,58689.0,0.65354843]
[1617323068093,0.004,58700.0,58689.0,0.389256]
[1617323068694,0.255648,58702.0,58690.0,0.26429243]
[1617323068895,0.004,58704.0,58690.0,0.26429243]
[1617323069095,0.185,58703.0,58689.0,0.052]
[1617323069298,0.185,58703.0,58688.0,0.27778354]
[1617323069299,0.737256,58703.0,58688.0,0.27778354]
[1617323069701,0.22,58702.0,58688.0,0.27778354]
[1617323069897,0.22,58702.0,58688.0,0.32778354]
[1617323070098,0.16,58696.0,58688.0,0.27778354]
[1617323070301,0.164,58696.0,58684.0,0.255644]
[1617323070534,0.259657,58701.0,58687.0,0.389256]
[1617323070725,0.259657,58701.0,58685.0,0.26429243]
[1617323071124,0.259657,58701.0,58687.0,0.00573577]
[1617323071326,0.004,58701.0,58687.0,0.2700282]
[1617323071529,0.389256,58700.0,58690.0,0.002]
[1617323071730,0.27778354,58699.0,58687.0,0.00573577]
[1617323071930,0.389256,58698.0,58687.0,0.00573577]
[1617323072325,0.255659,58700.0,58687.0,0.2700282]
[1617323072527,0.255659,58700.0,58688.0,0.26429243]
[1617323072727,0.255659,58700.0,58687.0,0.3200282]
[1617323072925,0.389256,58699.0,58688.0,0.26429243]
[1617323073157,0.389256,58699.0,58687.0,0.00573577]
[1617323074206,0.189256,58699.0,58687.0,0.00573577]
[1617323074403,0.2783931,58698.0,58687.0,0.00573577]
[1617323074603,0.389256,58697.0,58687.0,0.00573577]
[1617323074807,0.255686,58693.0,58687.0,0.00573577]
[1617323075011,0.8126701,58692.0,58687.0,0.00573577]
[1617323075209,0.389277,58688.0,58687.0,0.00573577]
[1617323076202,0.552277,58688.0,58687.0,0.00573577]
[1617323076409,0.882277,58688.0,58687.0,0.00573577]
[1617323077806,0.719277,58688.0,58687.0,0.00573577]
[1617323079442,1.60998457,58688.0,58687.0,0.00573577]
[1617323079649,1.60998457,58688.0,58687.0,5.77e-06]
[1617323079848,1.60998457,58688.0,58665.0,0.00303724]
[1617323079849,0.73570757,58687.0,58659.0,0.2]
[1617323080049,0.127904,58668.0,58659.0,0.2]
[1617323080244,0.29851,58668.0,58660.0,0.26429243]
[1617323080447,0.255807,58666.0,58660.0,0.26429243]
[1617323080642,0.389277,58665.0,58660.0,0.26429243]
[1617323080841,0.255807,58666.0,58660.0,0.26429243]
[1617323081042,0.004,58670.0,58658.0,0.26429243]
[1617323081246,0.004,58670.0,58657.0,0.26429243]
[1617323081445,0.255775,58666.0,58656.0,0.26429243]
[1617323082036,0.255775,58666.0,58652.0,0.26429243]
[1617323082245,0.0042,58664.0,58652.0,0.26429243]
[1617323083038,0.389277,58663.0,58652.0,0.26429243]
[1617323083239,0.0042,58664.0,58652.0,0.26429243]
[1617323083444,0.14151411,58663.0,58649.0,0.26429243]
[1617323083671,0.255788,58662.0,58649.0,0.31429243]
[1617323083867,0.255788,58662.0,58650.0,0.26429243]
[1617323084069,0.255788,58662.0,58650.0,0.31429243]
[1617323084267,0.255788,58662.0,58651.0,0.26429243]
[1617323084468,0.39730211,58662.0,58651.0,0.26429243]
[1617323084669,0.389277,58661.0,58651.0,0.26429243]
[1617323084867,0.743166,58656.0,58651.0,0.26429243]
[1617323085068,0.389277,58655.0,58650.0,0.26429243]
[1617323085271,0.389277,58655.0,58644.0,0.2]
[1617323085473,0.743166,58656.0,58642.0,0.002]
[1617323085474,0.48735,58656.0,58642.0,0.002]
[1617323085672,0.48735,58656.0,58640.0,0.2]
[1617323085673,0.0044,58651.0,58640.0,0.2]
[1617323085875,0.389277,58650.0,58640.0,0.2]
[1617323086069,0.255862,58646.0,58640.0,0.2]
[1617323086288,0.389277,58645.0,58640.0,0.2]
[1617323086491,0.389277,58645.0,58632.0,0.2]
[1617323086685,0.135,58644.0,58633.0,0.26429243]
[1617323086889,0.4941,58644.0,58633.0,0.26429243]
[1617323087285,0.4941,58644.0,58634.0,0.2783931]
[1617323087491,0.4899,58644.0,58637.0,0.2]
[1617323087688,0.4899,58644.0,58642.0,0.389277]
[1617323087897,0.09872,58662.0,58643.0,0.46506943]
[1617323088094,0.169,58657.0,58644.0,0.26429243]
[1617323088292,0.169,58657.0,58646.0,0.002]
[1617323088493,0.426436,58675.0,58647.0,0.46504843]
[1617323088494,0.39150782,58667.0,58647.0,0.46504843]
[1617323088754,0.255786,58665.0,58648.0,0.45232967]
[1617323088955,0.389277,58664.0,58648.0,0.31429243]
[1617323089149,0.39150782,58663.0,58648.0,0.31429243]
[1617323089351,0.389277,58664.0,58646.0,0.002]
[1617323089549,0.389277,58664.0,58650.0,0.39176195]
[1617323089752,0.255815,58659.0,58646.0,0.002]
[1617323090150,0.389277,58658.0,58646.0,0.002]
[1617323090350,0.08837305,58657.0,58646.0,0.002]
[1617323090551,0.0042,58655.0,58640.0,0.002]
[1617323090751,0.0042,58655.0,58641.0,0.65356943]
[1617323090953,0.0042,58655.0,58642.0,0.26429243]
[1617323091152,0.260028,58655.0,58641.0,0.26429243]
[1617323091348,0.5384211,58655.0,58638.0,0.26429243]
[1617323091557,0.15,58654.0,58638.0,0.25929243]
[1617323091749,0.15,58654.0,58640.0,0.002]
[1617323091952,0.255828,58655.0,58641.0,0.25929243]
[1617323092149,0.255828,58655.0,58642.0,0.389277]
[1617323092351,0.255828,58655.0,58644.0,0.200767]
[1617323092552,0.255828,58655.0,58645.0,0.25929243]
[1617323092956,0.169,58662.0,58645.0,0.31129243]
[1617323093154,0.389277,58661.0,58655.0,0.158]
[1617323093355,0.34105,58668.0,58655.0,0.41729243]
[1617323093554,0.389277,58667.0,58656.0,0.25929243]
[1617323093751,0.255782,58666.0,58656.0,0.25929243]
[1617323093949,0.255782,58666.0,58655.0,0.30929243]
[1617323094152,0.255782,58666.0,58655.0,0.05]
[1617323094353,1.91,58665.0,58650.0,0.58468553]
[1617323094554,0.17,58664.0,58652.0,0.002]
[1617323094753,0.545,58664.0,58652.0,0.002]
[1617323094951,0.39150782,58663.0,58652.0,0.002]
[1617323095152,0.78078482,58663.0,58652.0,0.002]
[1617323095353,0.39150782,58662.0,58652.0,0.002]
[1617323095552,0.389277,58661.0,58648.0,0.2]
[1617323095755,0.389277,58661.0,58648.0,0.45929243]
[1617323095953,0.389277,58661.0,58649.0,0.25929243]
[1617323096154,0.345,58660.0,58649.0,0.05]
[1617323096353,0.345,58660.0,58650.0,0.53768553]
[1617323096554,0.345,58660.0,58650.0,0.58768553]
[1617323096984,0.35073957,58660.0,58650.0,0.3283931]
[1617323097184,0.35073957,58660.0,58650.0,0.05]
[1617323097387,0.389277,58659.0,58647.0,0.002]
[1617323097587,0.46,58659.0,58647.0,0.26129243]
[1617323097788,0.00573957,58660.0,58648.0,0.25929243]
[1617323097988,0.00573957,58660.0,58648.0,0.05]
[1617323098189,0.00573957,58660.0,58648.0,0.30929243]
[1617323098387,0.00573957,58660.0,58648.0,0.05]
[1617323098594,0.00573957,58660.0,58647.0,0.002]
[1617323098789,0.639277,58659.0,58647.0,0.002]
[1617323098988,0.639277,58659.0,58648.0,0.25929243]
[1617323099186,0.639277,58659.0,58647.0,0.002]
[1617323099404,0.639277,58659.0,58647.0,0.052]
[1617323099605,0.569277,58658.0,58647.0,0.31129243]
[1617323099805,0.00573957,58660.0,58648.0,0.25929243]
[1617323100205,0.00573957,58660.0,58647.0,0.052]
[1617323100603,0.00573957,58660.0,58647.0,0.002]
[1617323100805,0.389277,58659.0,58647.0,0.002]
[1617323101204,0.00573957,58660.0,58647.0,0.002]
[1617323101806,0.645075,58659.0,58647.0,0.002]
[1617323102042,0.18,58658.0,58648.0,0.25929243]
[1617323102243,0.00573957,58660.0,58650.0,0.389277]
[1617323102442,0.00573957,58660.0,58649.0,0.2783931]
[1617323102443,0.00573957,58660.0,58652.0,0.200679]
[1617323102642,0.00573957,58660.0,58652.0,0.250679]
[1617323103906,0.00073957,58660.0,58648.0,0.00200259]
[1617323104301,0.00073957,58660.0,58648.0,0.16600259]
[1617323104513,0.00073957,58660.0,58648.0,0.00200259]
[1617323105335,0.00073957,58660.0,58647.0,0.00200263]
[1617323105535,0.00073957,58660.0,58650.0,0.389277]
[1617323105734,0.00073957,58660.0,58651.0,0.14]
[1617323105939,0.00073957,58660.0,58652.0,0.45997143]
[1617323106144,0.00073957,58660.0,58657.0,0.389228]
[1617323106342,0.00073957,58660.0,58659.0,0.2783931]
[1617323106543,0.00073957,58660.0,58659.0,0.90133953]
[1617323106940,0.00073957,58660.0,58659.0,1.20133953]
[1617323107141,0.16473957,58682.0,58660.0,0.25929243]
[1617323107354,0.17,58683.0,58670.0,0.165]
[1617323107554,0.17,58683.0,58672.0,0.389277]
[1617323107754,0.17,58683.0,58672.0,0.589277]
[1617323108148,0.17,58683.0,58672.0,0.439277]
[1617323108351,0.56150782,58697.0,58672.0,0.439277]
[1617323108551,0.004,58685.0,58672.0,0.05]
[1617323108750,0.74070757,58684.0,58671.0,0.052]
[1617323108952,0.004,58685.0,58671.0,0.052]
[1617323109148,0.389277,58684.0,58671.0,0.002]
[1617323109349,0.74070757,58685.0,58666.0,0.00303724]
[1617323109350,0.1694,58683.0,58666.0,0.00303724]
[1617323109754,0.340938,58690.0,58667.0,0.25929243]
[1617323109979,0.340938,58690.0,58670.0,0.002]
[1617323109980,0.509938,58690.0,58670.0,0.002]
[1617323110174,0.90970757,58690.0,58673.0,0.207]
[1617323110378,0.135,58688.0,58673.0,0.05]
[1617323110575,1.40837767,58687.0,58670.0,0.002]
[1617323110777,1.40837767,58687.0,58671.0,0.25929243]
[1617323110778,0.255712,58681.0,58671.0,0.25929243]
[1617323110984,0.90487746,58698.0,58672.0,0.2783931]
[1617323111185,0.33,58697.0,58678.0,0.002]
[1617323111381,0.33,58697.0,58679.0,0.25929243]
[1617323111575,0.33,58697.0,58681.0,0.389277]
[1617323111774,0.16,58697.0,58682.0,0.30303724]
[1617323111978,0.16,58697.0,58681.0,0.00303724]
[1617323111979,0.155,58697.0,58681.0,0.00303724]
[1617323112602,0.25563,58702.0,58682.0,0.389277]
[1617323112804,0.004,58700.0,58683.0,0.00303724]
[1617323113002,1.30498457,58699.0,58679.0,0.00303724]
[1617323113200,0.74070757,58698.0,58679.0,0.00303724]
[1617323113401,0.91570757,58699.0,58679.0,0.00303724]
[1617323113798,0.74070757,58698.0,58679.0,0.00303724]
[1617323114000,0.175,58699.0,58679.0,0.00303724]
[1617323114198,0.004,58700.0,58679.0,0.00303724]
[1617323114601,0.255644,58699.0,58679.0,0.25868124]
[1617323114798,0.255644,58699.0,58679.0,0.51797367]
[1617323115000,0.255644,58699.0,58680.0,0.25929243]
[1617323115230,1.21793934,58715.0,58689.0,0.158]
[1617323115432,1.21793934,58715.0,58690.0,0.2783931]
[1617323115433,0.558277,58706.0,58690.0,0.2783931]
[1617323115630,0.813907,58706.0,58690.0,0.3283931]
[1617323115835,0.25563,58706.0,58690.0,0.64916553]
[1617323116035,0.01083942,58708.0,58690.0,0.8380731]
[1617323116229,0.01083942,58708.0,58691.0,0.135]
[1617323116430,0.75154699,58708.0,58692.0,0.002]
[1617323116634,0.74070757,58707.0,58692.0,0.002]
[1617323117037,0.01083942,58708.0,58692.0,0.002]
[1617323117228,0.75154699,58708.0,58692.0,0.002]
[1617323117428,0.74070757,58707.0,58692.0,0.002]
[1617323118742,0.389277,58706.0,58692.0,0.00773525]
[1617323118941,0.91070757,58705.0,58692.0,0.00773525]
[1617323119144,1.12998457,58704.0,58692.0,0.00573525]
[1617323119347,0.389277,58704.0,58692.0,0.00573525]
[1617323120398,1.12998457,58704.0,58692.0,0.00573525]
[1617323120594,0.389277,58702.0,58692.0,0.00573525]
[1617323121196,1.12998457,58702.0,58692.0,0.00573525]
[1617323121597,0.18,58701.0,58692.0,0.00573525]
[1617323121796,0.389277,58700.0,58692.0,0.00573525]
[1617323122803,0.73341043,58703.0,58697.0,0.162]
[1617323123019,0.389269,58702.0,58692.0,0.00573525]
[1617323123210,0.145,58702.0,58692.0,0.00573525]
[1617323124811,0.145,58702.0,58694.0,0.255585]
[1617323125010,0.145,58702.0,58694.0,0.305585]
[1617323125212,0.145,58702.0,58694.0,0.05]
[1617323125213,0.389269,58701.0,58694.0,0.05]
[1617323125416,0.389269,58701.0,58692.0,0.00573525]
[1617323125630,0.389269,58699.0,58683.0,0.30156849]
[1617323125828,1.9,58698.0,58688.0,0.255607]
[1617323126229,0.66970216,58697.0,58675.0,0.30192784]
[1617323126430,0.39150782,58696.0,58675.0,0.002]
[1617323126630,0.005,58692.0,58675.0,0.002]
[1617323127427,0.005,58692.0,58678.0,0.389269]
[1617323127629,1.9,58698.0,58682.0,0.14251825]
[1617323127630,0.17603724,58697.0,58682.0,0.14251825]
[1617323127825,0.17603724,58697.0,58682.0,0.57681068]
[1617323128026,0.173,58697.0,58683.0,0.25929243]
[1617323128278,0.173,58697.0,58685.0,0.255622]
[1617323128477,0.173,58697.0,58686.0,0.389269]
[1617323128674,0.173,58697.0,58686.0,0.534269]
[1617323128874,0.00303724,58702.0,58686.0,0.534269]
[1617323129077,0.00303724,58702.0,58690.0,0.155]
[1617323129275,0.00303724,58702.0,58685.0,0.305622]
[1617323129675,0.00303724,58702.0,58685.0,0.56491443]
[1617323129874,0.00303724,58702.0,58685.0,0.305622]
[1617323130075,0.2,58701.0,58685.0,0.305622]
[1617323130277,0.00303724,58700.0,58685.0,0.305622]
[1617323130476,0.389269,58699.0,58683.0,0.05]
[1617323130674,0.689269,58697.0,58682.0,0.002]
[1617323130891,0.00303724,58696.0,58682.0,0.002]
[1617323131287,0.0042,58698.0,58683.0,0.156]
[1617323131688,0.579269,58697.0,58683.0,0.05]
[1617323131888,0.19,58697.0,58683.0,0.05]
[1617323132086,0.19,58697.0,58682.0,0.002]
[1617323132287,0.00303724,58697.0,58682.0,0.002]
[1617323133503,0.00303724,58698.0,58682.0,0.002]
[1617323133778,0.2,58697.0,58682.0,0.002]
[1617323134576,0.2,58697.0,58682.0,0.26329674]
[1617323134782,0.00303724,58699.0,58682.0,0.26329674]
[1617323134975,0.00303724,58699.0,58683.0,0.00200429]
[1617323135177,0.389269,58698.0,58683.0,0.00200429]
[1617323135378,0.00303724,58697.0,58682.0,0.00400431]
[1617323135575,0.26303724,58697.0,58682.0,0.00400431]
[1617323135776,0.389269,58696.0,58683.0,0.255641]
[1617323136177,0.389269,58696.0,58683.0,0.305641]
[1617323136782,1.02250349,58695.0,58683.0,0.255641]
[1617323136989,0.389269,58690.0,58678.0,0.00200444]
[1617323137184,0.005,58687.0,58676.0,0.00200449]
[1617323137379,0.389269,58685.0,58676.0,0.00200449]
[1617323137586,0.66666492,58683.0,58675.0,0.00200452]
[1617323137785,0.74070757,58682.0,58671.0,1.00520465]
[1617323137986,0.74070757,58682.0,58671.0,1.0032]
[1617323137987,0.389269,58681.0,58671.0,1.0032]
[1617323138186,0.389269,58679.0,58671.0,1.0032]
[1617323138380,1.12997657,58679.0,58671.0,1.0032]
[1617323138578,1.12997657,58679.0,58669.0,0.00200471]
[1617323138781,0.00303724,58678.0,58669.0,0.00200471]
[1617323138979,0.389269,58677.0,58669.0,0.00200471]
[1617323139388,0.16,58676.0,58668.0,0.00200475]
[1617323139581,0.389269,58675.0,58668.0,0.00200475]
[1617323139979,0.0042,58676.0,58668.0,0.00200475]
[1617323140183,0.0042,58676.0,58669.0,0.00200475]
[1617323140382,0.389269,58675.0,58668.0,0.00200475]
[1617323140783,0.389269,58675.0,58669.0,0.00200475]
[1617323140980,0.389269,58675.0,58667.0,0.00300711]
[1617323140981,0.827189,58675.0,58667.0,0.0020048]
[1617323141181,0.827189,58675.0,58666.0,0.0020048]
[1617323141393,0.827189,58675.0,58665.0,0.00200488]
[1617323141394,0.25577,58671.0,58665.0,0.00200488]
[1617323141588,2.289269,58666.0,58665.0,0.00200488]
[1617323141785,0.389269,58662.0,58658.0,0.00200502]
[1617323141983,0.389269,58662.0,58657.0,0.00200502]
[1617323142186,0.389269,58662.0,58656.0,0.02006715]
[1617323142187,2.289269,58658.0,58656.0,0.02006715]
[1617323142383,2.129269,58657.0,58656.0,0.02006715]
[1617323142583,0.39853,58662.0,58647.0,0.9736]
[1617323142584,2.119356,58656.0,58655.0,0.02006719]
[1617323142782,2.39675192,58656.0,58654.0,0.02006765]
[1617323142983,0.39853,58662.0,58655.0,0.00301023]
[1617323143186,0.389356,58658.0,58654.0,0.00301025]
[1617323143384,0.27,58657.0,58656.0,0.00200684]
[1617323143582,2.539356,58657.0,58656.0,0.00200684]
[1617323144017,2.539356,58657.0,58654.0,0.00301025]
[1617323144018,2.56675192,58656.0,58655.0,0.00200684]
[1617323144213,3.41777517,58656.0,58655.0,0.00200684]
[1617323144411,2.954356,58656.0,58655.0,0.00200684]
[1617323145017,0.255841,58654.0,58652.0,0.0020069]
[1617323145218,1.019356,58653.0,58651.0,0.00301035]
[1617323145412,0.579356,58652.0,58651.0,0.00301035]
[1617323145613,0.389356,58652.0,58651.0,0.00301035]
[1617323145814,0.389356,58652.0,58635.0,0.202]
[1617323146015,0.27739592,58652.0,58635.0,0.202]
[1617323146415,0.255886,58644.0,58635.0,0.2]
[1617323146630,0.706586,58644.0,58633.0,0.389356]
[1617323146828,0.706586,58644.0,58632.0,0.00022]
[1617323147228,0.4507,58644.0,58632.0,0.00022]
[1617323147631,0.18602325,58643.0,58632.0,0.00022]
[1617323147832,0.16,58642.0,58632.0,0.00022]
[1617323149297,0.34602325,58642.0,58632.0,0.00022]
[1617323149489,0.16,58642.0,58632.0,0.00022]
[1617323150090,0.16,58642.0,58633.0,0.25929243]
[1617323150292,0.004,58646.0,58633.0,0.30929243]
[1617323150493,0.00303724,58649.0,58633.0,0.30929243]
[1617323150494,0.39454506,58649.0,58633.0,0.30929243]
[1617323150694,0.00303724,58650.0,58633.0,0.30929243]
[1617323151094,0.255882,58645.0,58632.0,0.00022]
[1617323156315,0.255882,58645.0,58633.0,0.25929243]
[1617323156514,0.39454506,58649.0,58633.0,0.25929243]
[1617323156718,0.39150782,58648.0,58633.0,0.30929243]
[1617323156913,0.39854506,58651.0,58633.0,0.05]
[1617323157132,0.17,58650.0,58632.0,0.00022]
[1617323157329,0.00303724,58649.0,58632.0,0.00022]
[1617323157530,0.00303724,58649.0,58632.0,0.25951243]
[1617323157731,0.25890024,58649.0,58632.0,0.25951243]